bitfinex/quotes_BTCUSD_20220213
["timestamp","ask_amount","ask_price","bid_price","bid_amount"]
[1644749006745,0.33141078,42621.0,42620.0,0.025]
[1644749006948,1.4627356,42621.0,42620.0,0.025]
[1644749007198,1.5627356,42621.0,42620.0,0.025]
[1644749007402,1.5467356,42621.0,42620.0,0.025]
[1644749008799,2.0467356,42621.0,42620.0,0.025]
[1644749008999,1.05,42620.0,42619.0,0.00022152]
[1644749009201,1.253,42619.0,42618.0,0.2004478]
[1644749009401,1.60884721,42619.0,42618.0,0.2]
[1644749009600,1.81858281,42619.0,42618.0,0.2]
[1644749009801,0.56558281,42619.0,42618.0,0.2]
[1644749009999,0.86024977,42619.0,42618.0,0.2]
[1644749010200,1.95351417,42619.0,42618.0,0.2]
[1644749010601,2.11324977,42619.0,42618.0,0.2]
[1644749011853,0.86024977,42619.0,42618.0,0.2]
[1644749012253,0.70051417,42619.0,42618.0,0.2]
[1644749012453,2.11324977,42619.0,42618.0,0.2]
[1644749014456,2.12264577,42619.0,42618.0,0.2]
[1644749014696,2.11324977,42619.0,42618.0,0.2]
[1644749018453,2.61324977,42619.0,42618.0,0.2]
[1644749018653,2.82628654,42619.0,42618.0,0.2]
[1644749019655,1.08147737,42619.0,42618.0,0.2]
[1644749019860,0.87277237,42619.0,42618.0,0.2]
[1644749020058,0.1597356,42619.0,42618.0,0.2]
[1644749020258,0.21303677,42624.0,42618.0,0.2]
[1644749020660,0.21303677,42624.0,42620.0,0.20274148]
[1644749021059,0.09906237,42627.0,42620.0,0.19774148]
[1644749021558,0.14906237,42627.0,42620.0,0.197963]
[1644749021760,0.19906237,42627.0,42621.0,0.00045286]
[1644749021959,0.19906237,42627.0,42621.0,0.00067438]
[1644749022197,0.19906237,42627.0,42621.0,0.00045286]
[1644749022797,0.058687,42625.0,42619.0,0.00022152]
[1644749022998,0.058687,42625.0,42622.0,0.0004201]
[1644749023596,0.25293804,42623.0,42618.0,0.19564162]
[1644749023798,0.30293804,42623.0,42618.0,0.19586637]
[1644749024200,0.40293804,42623.0,42618.0,0.19586637]
[1644749024397,0.15,42623.0,42618.0,0.19586637]
[1644749025400,0.05,42623.0,42618.0,0.19564162]
[1644749025597,0.05,42624.0,42618.0,0.19564162]
[1644749025847,0.158687,42625.0,42618.0,0.19564162]
[1644749026051,0.25401504,42624.0,42618.0,0.19564162]
[1644749026248,0.23429562,42622.0,42618.0,0.19564162]
[1644749026657,0.28429562,42622.0,42619.0,0.00032502]
[1644749026848,0.28429562,42622.0,42619.0,0.00054977]
[1644749027651,0.28429562,42622.0,42619.0,0.00022475]
[1644749027851,0.05,42624.0,42618.0,0.19612323]
[1644749028951,0.25572323,42624.0,42619.0,0.00048161]
[1644749029151,0.25572323,42624.0,42619.0,0.00070636]
[1644749029802,0.30572323,42624.0,42619.0,0.00070636]
[1644749029999,0.30572323,42624.0,42619.0,0.00022475]
[1644749030199,0.40572323,42624.0,42619.0,0.0004816]
[1644749030500,0.40572323,42624.0,42619.0,0.00070635]
[1644749030701,0.2,42624.0,42619.0,0.00070635]
[1644749031104,0.2,42624.0,42619.0,0.00022475]
[1644749031308,0.1,42624.0,42619.0,0.0004816]
[1644749031505,0.1,42624.0,42619.0,0.00070635]
[1644749031704,0.05,42624.0,42619.0,0.00070635]
[1644749032304,0.05,42624.0,42621.0,0.21282968]
[1644749033346,0.058687,42625.0,42621.0,0.21282968]
[1644749034847,0.058687,42625.0,42619.0,0.00022475]
[1644749035148,0.058687,42625.0,42620.0,0.0004816]
[1644749035948,0.058687,42625.0,42619.0,0.00022475]
[1644749036149,0.058687,42625.0,42620.0,0.0004816]
[1644749036751,0.10429951,42625.0,42620.0,0.0004816]
[1644749036948,1.40729951,42625.0,42620.0,0.0004816]
[1644749037202,0.38151438,42624.0,42619.0,0.00022475]
[1644749037402,0.64124998,42624.0,42620.0,0.0004816]
[1644749037600,0.25974598,42621.0,42620.0,0.0004816]
[1644749037800,0.35974598,42621.0,42620.0,0.0004816]
[1644749038000,0.45974598,42621.0,42620.0,0.0004816]
[1644749038401,0.45974598,42621.0,42619.0,0.00022475]
[1644749038601,0.45974598,42621.0,42618.0,0.19612323]
[1644749039604,0.30974598,42621.0,42618.0,0.19564162]
[1644749039805,0.40974598,42621.0,42618.0,0.19564162]
[1644749040007,0.45974598,42621.0,42618.0,0.19586637]
[1644749040851,0.70691734,42621.0,42618.0,0.19586637]
[1644749041053,0.2752085,42620.0,42618.0,0.19564162]
[1644749041256,0.2752085,42620.0,42618.0,0.19586637]
[1644749041257,0.08868094,42619.0,42618.0,0.19586637]
[1644749041455,1.34168094,42619.0,42618.0,0.19564162]
[1644749041654,1.39168094,42619.0,42618.0,0.19564162]
[1644749041855,0.39841654,42619.0,42618.0,0.19564162]
[1644749042252,0.2,42619.0,42618.0,0.19564162]
[1644749042855,0.1,42619.0,42618.0,0.19564162]
[1644749043254,0.05,42619.0,42618.0,0.19564162]
[1644749044462,0.32826944,42619.0,42618.0,0.19564162]
[1644749044900,0.42826944,42619.0,42618.0,0.19564162]
[1644749045499,0.47430284,42619.0,42618.0,0.19564162]
[1644749045700,0.52430284,42619.0,42618.0,0.19564162]
[1644749045998,0.68403844,42619.0,42618.0,0.19064162]
[1644749046599,0.63800504,42619.0,42618.0,0.19064162]
[1644749047102,0.47826944,42619.0,42618.0,0.19064162]
[1644749047300,1.73126944,42619.0,42618.0,0.19064162]
[1644749047701,0.63800504,42619.0,42618.0,0.19064162]
[1644749048104,0.47826944,42619.0,42618.0,0.19064162]
[1644749048354,1.73126944,42619.0,42618.0,0.19064162]
[1644749048755,1.89100504,42619.0,42618.0,0.19064162]
[1644749048956,0.43800504,42619.0,42618.0,0.19064162]
[1644749049156,0.1597356,42619.0,42618.0,0.19064162]
[1644749049357,0.058697,42620.0,42618.0,0.19064162]
[1644749050155,0.058697,42620.0,42618.0,0.17664162]
[1644749052499,0.64104823,42623.0,42618.0,0.17664162]
[1644749052500,0.52366123,42623.0,42618.0,0.17664162]
[1644749052699,0.52366123,42623.0,42618.0,0.17686637]
[1644749053100,0.52366123,42623.0,42618.0,0.17712269]
[1644749054102,0.47366123,42623.0,42618.0,0.17664162]
[1644749054302,0.52366123,42623.0,42618.0,0.17712269]
[1644749055306,0.52366123,42623.0,42618.0,0.17664162]
[1644749055506,0.52366123,42623.0,42618.0,0.17712269]
[1644749056058,0.62366123,42623.0,42618.0,0.17712269]
[1644749056460,0.78339683,42623.0,42618.0,0.17664162]
[1644749056660,0.78339683,42623.0,42618.0,0.17712269]
[1644749057465,0.79279183,42623.0,42618.0,0.17712269]
[1644749057661,0.78339683,42623.0,42618.0,0.17664162]
[1644749057861,0.78339683,42623.0,42618.0,0.17712269]
[1644749058663,0.72470583,42623.0,42618.0,0.17712269]
[1644749058865,0.72470583,42623.0,42618.0,0.17664162]
[1644749059064,0.56497023,42623.0,42618.0,0.17712269]
[1644749059262,0.72470583,42623.0,42618.0,0.17712269]
[1644749059462,0.56497023,42623.0,42618.0,0.17712269]
[1644749060105,0.56497023,42623.0,42618.0,0.17664162]
[1644749060299,0.56497023,42623.0,42618.0,0.17712269]
[1644749061200,0.57436523,42623.0,42618.0,0.17664162]
[1644749061401,0.73410083,42623.0,42618.0,0.17712269]
[1644749061601,0.62366223,42623.0,42618.0,0.17712269]
[1644749061805,1.311692,42622.0,42618.0,0.17712269]
[1644749062004,0.03590952,42621.0,42618.0,0.17712269]
[1644749062204,0.0958736,42620.0,42618.0,0.17712269]
[1644749062404,0.0958736,42620.0,42618.0,0.17664162]
[1644749062608,0.05,42620.0,42618.0,0.17664162]
[1644749062805,1.253,42620.0,42618.0,0.17664162]
[1644749063004,0.2,42621.0,42618.0,0.17664162]
[1644749063205,0.2597356,42619.0,42618.0,0.17686637]
[1644749063454,0.1,42619.0,42618.0,0.17664162]
[1644749063651,0.05,42619.0,42618.0,0.17664162]
[1644749063852,0.2,42621.0,42618.0,0.17664162]
[1644749064253,0.05,42621.0,42618.0,0.17664162]
[1644749065053,0.009396,42621.0,42618.0,0.17664162]
[1644749065257,0.009396,42621.0,42618.0,0.17686637]
[1644749065653,0.03465201,42620.0,42618.0,0.17686637]
[1644749065853,0.03573705,42621.0,42618.0,0.17664162]
[1644749066055,0.19547265,42621.0,42618.0,0.17686637]
[1644749066252,1.49847265,42621.0,42618.0,0.17664162]
[1644749066455,0.2097356,42621.0,42618.0,0.17686637]
[1644749066653,0.1597356,42620.0,42618.0,0.17686637]
[1644749066853,0.1597356,42620.0,42618.0,0.17664162]
[1644749067111,0.05,42620.0,42618.0,0.17664162]
[1644749067301,0.3097356,42621.0,42618.0,0.17664162]
[1644749067501,0.19515403,42621.0,42618.0,0.17686637]
[1644749067702,0.05,42620.0,42618.0,0.17686637]
[1644749068006,0.05,42620.0,42618.0,0.17664162]
[1644749068504,0.03721098,42620.0,42618.0,0.17664162]
[1644749068702,0.29576412,42621.0,42618.0,0.17664162]
[1644749069104,0.2597356,42621.0,42618.0,0.17686637]
[1644749069501,0.1,42621.0,42618.0,0.17686637]
[1644749069701,0.05,42621.0,42618.0,0.17686637]
[1644749069901,0.05,42621.0,42618.0,0.17664162]
[1644749070103,0.03445817,42622.0,42618.0,0.17664162]
[1644749070302,0.04648149,42622.0,42618.0,0.17686637]
[1644749070506,0.72470583,42623.0,42618.0,0.17686637]
[1644749070950,0.09633355,42622.0,42618.0,0.17686637]
[1644749071151,0.05,42621.0,42618.0,0.17712269]
[1644749071551,0.108691,42622.0,42618.0,0.17712269]
[1644749071850,0.77847088,42623.0,42618.0,0.24414006]
[1644749071851,0.2597356,42623.0,42618.0,0.24414006]
[1644749072052,0.2597356,42623.0,42618.0,0.24365899]
[1644749072253,0.2597356,42623.0,42618.0,0.17712269]
[1644749072852,0.1,42623.0,42618.0,0.17712269]
[1644749073057,0.1,42623.0,42618.0,0.17704266]
[1644749073253,0.2,42623.0,42618.0,0.17656159]
[1644749073454,0.2,42623.0,42618.0,0.17704266]
[1644749074454,0.2,42623.0,42618.0,0.17656159]
[1644749074700,0.2,42623.0,42618.0,0.17704266]
[1644749075605,0.2,42623.0,42618.0,0.17656159]
[1644749075800,0.2,42623.0,42618.0,0.17704266]
[1644749076800,0.209395,42623.0,42618.0,0.17704266]
[1644749077001,0.209395,42623.0,42618.0,0.17656159]
[1644749077602,0.209395,42623.0,42620.0,0.25314154]
[1644749077801,0.2,42623.0,42620.0,0.25314154]
[1644749078207,0.15,42623.0,42620.0,0.25314154]
[1644749080662,0.1,42623.0,42620.0,0.25314154]
[1644749080871,0.1597356,42627.0,42621.0,1.05]
[1644749081066,0.1597356,42627.0,42624.0,0.05]
[1644749081266,0.00048191,42628.0,42625.0,0.3]
[1644749081464,0.00048191,42628.0,42627.0,0.4792068]
[1644749081663,0.009394,42636.0,42628.0,0.19099674]
[1644749081864,0.009394,42636.0,42635.0,0.25236078]
[1644749085105,0.00927707,42636.0,42635.0,0.25236078]
[1644749086052,0.00048694,42638.0,42635.0,0.25236078]
[1644749086450,0.4269615,42640.0,42635.0,0.25236078]
[1644749086657,0.21300519,42646.0,42636.0,0.289833]
[1644749086849,0.1196,42647.0,42636.0,0.289833]
[1644749086850,0.00048693,42639.0,42636.0,0.289833]
[1644749087651,0.20779132,42646.0,42637.0,0.0866862]
[1644749087850,0.00048692,42640.0,42637.0,0.0866862]
[1644749088852,0.40779132,42646.0,42637.0,0.0866862]
[1644749089053,0.25978749,42644.0,42635.0,0.25236078]
[1644749089254,0.00048691,42641.0,42635.0,0.25236078]
[1644749089451,0.00048691,42641.0,42629.0,0.34327515]
[1644749090101,0.61952309,42644.0,42630.0,0.08856041]
[1644749090303,0.00048694,42637.0,42630.0,0.08856041]
[1644749091403,0.108665,42641.0,42630.0,0.08856041]
[1644749091604,0.00046136,42636.0,42630.0,0.08856041]
[1644749092202,0.00046136,42636.0,42629.0,0.20569352]
[1644749092603,0.31071807,42637.0,42629.0,0.20569352]
[1644749092804,0.00046137,42635.0,42629.0,0.20569352]
[1644749093450,0.00046137,42635.0,42632.0,0.0888772]
[1644749093853,0.15,42637.0,42632.0,0.0888772]
[1644749094052,0.15,42637.0,42629.0,0.20569352]
[1644749094053,0.00046136,42636.0,42629.0,0.20569352]
[1644749095051,0.29439565,42641.0,42634.0,0.0756969]
[1644749095250,0.00044666,42635.0,42634.0,0.0756969]
[1644749096156,0.15,42641.0,42636.0,0.20209296]
[1644749096359,0.00044665,42637.0,42636.0,0.20209296]
[1644749096551,0.00983865,42637.0,42636.0,0.20209296]
[1644749096951,0.00044665,42637.0,42636.0,0.20209296]
[1644749097403,1.62618872,42645.0,42636.0,0.20209296]
[1644749097604,0.00044664,42639.0,42636.0,0.20209296]
[1644749098602,0.058663,42642.0,42636.0,0.20209296]
[1644749098803,0.00016168,42640.0,42636.0,0.20209296]
[1644749099803,0.05,42644.0,42636.0,0.20209296]
[1644749100104,0.00016168,42640.0,42636.0,0.20209296]
[1644749100949,6.096e-05,42645.0,42636.0,0.20209296]
[1644749101150,0.00016168,42640.0,42637.0,0.3]
[1644749101349,0.00016168,42640.0,42636.0,0.20209296]
[1644749101949,0.00016168,42640.0,42634.0,0.0756969]
[1644749102148,0.24729818,42640.0,42634.0,0.0756969]
[1644749102348,0.24778736,42640.0,42634.0,0.0756969]
[1644749102549,0.29778736,42640.0,42634.0,0.0756969]
[1644749102750,0.05048918,42640.0,42634.0,0.0756969]
[1644749103152,0.00048918,42640.0,42634.0,0.0756969]
[1644749103351,0.05,42641.0,42634.0,0.0756969]
[1644749103554,0.00048918,42639.0,42634.0,0.0756969]
[1644749104606,0.009392,42640.0,42634.0,0.0756969]
[1644749104607,0.2,42642.0,42634.0,0.0756969]
[1644749104803,0.00048919,42639.0,42634.0,0.0756969]
[1644749105005,0.00048919,42639.0,42629.0,0.29757626]
[1644749105203,0.20447166,42636.0,42629.0,0.3]
[1644749105403,0.20447166,42636.0,42628.0,0.42]
[1644749105605,0.20447166,42636.0,42628.0,0.3]
[1644749106003,0.00044757,42634.0,42628.0,0.49957477]
[1644749106404,0.00044757,42634.0,42628.0,0.19957477]
[1644749107004,0.058666,42640.0,42628.0,0.19957477]
[1644749107204,0.00044757,42633.0,42628.0,0.49957477]
[1644749107509,0.00044757,42633.0,42627.0,0.4792068]
[1644749108369,2.75675935,42628.0,42627.0,0.4792068]
[1644749108567,2.80675935,42628.0,42627.0,0.4792068]
[1644749108868,3.18144902,42628.0,42627.0,0.4792068]
[1644749109066,3.18144902,42628.0,42627.0,0.59950155]
[1644749109266,3.18144902,42628.0,42627.0,0.7197963]
[1644749109472,4.43444902,42628.0,42627.0,0.7197963]
[1644749109666,4.43444902,42628.0,42627.0,0.7197142]
[1644749110066,4.55182902,42628.0,42627.0,0.7197142]
[1644749110269,4.60182902,42628.0,42627.0,0.7197142]
[1644749111567,4.55182902,42628.0,42627.0,0.7197142]
[1644749111972,4.71159602,42628.0,42627.0,0.7197142]
[1644749114414,5.21159602,42628.0,42627.0,0.7197142]
[1644749114813,5.26159602,42628.0,42627.0,0.7197142]
[1644749115326,5.26159602,42628.0,42627.0,0.2405895]
[1644749115516,5.26159602,42628.0,42620.0,0.00048926]
[1644749115517,1.403,42624.0,42620.0,0.00048926]
[1644749115714,1.303,42621.0,42620.0,0.00048926]
[1644749115970,1.303,42621.0,42615.0,1.39761929]
[1644749115971,1.403,42621.0,42615.0,1.39761929]
[1644749116168,1.253,42616.0,42615.0,1.39761929]
[1644749116367,1.353,42616.0,42615.0,1.39761929]
[1644749116567,2.20676434,42616.0,42615.0,1.39761929]
[1644749117172,2.26548334,42616.0,42615.0,1.39761929]
[1644749117369,2.26548334,42616.0,42615.0,1.04530329]
[1644749118369,2.65528939,42616.0,42615.0,1.04530329]
[1644749119174,2.86836412,42616.0,42615.0,1.02161813]
[1644749119369,2.86836412,42616.0,42615.0,0.23269328]
[1644749119615,1.226164,42614.0,42611.0,0.00088103]
[1644749119814,1.63246254,42612.0,42611.0,0.00088103]
[1644749120007,1.68246254,42612.0,42611.0,0.00088103]
[1644749120207,1.78246254,42612.0,42611.0,0.00088103]
[1644749120410,1.94226859,42612.0,42611.0,0.00088103]
[1644749122710,2.44226859,42612.0,42611.0,0.00088103]
[1644749127207,2.49226859,42612.0,42611.0,0.00088103]
[1644749127408,1.05,42611.0,42601.0,0.01]
[1644749127612,1.370452,42610.0,42609.0,0.00048876]
[1644749127811,1.253,42606.0,42598.0,0.0183533]
[1644749128011,1.253,42606.0,42591.0,0.01]
[1644749128012,0.05,42600.0,42591.0,0.01]
[1644749128208,1.253,42596.0,42591.0,0.01]
[1644749128414,0.23242677,42595.0,42591.0,0.01]
[1644749128810,1.53542677,42595.0,42591.0,0.01]
[1644749129209,1.63542677,42595.0,42591.0,0.01]
[1644749130213,1.68542677,42595.0,42591.0,0.01]
[1644749130611,1.253,42593.0,42591.0,0.01]
[1644749130857,1.66822066,42592.0,42591.0,0.01]
[1644749131056,1.94410729,42592.0,42591.0,0.01]
[1644749131256,1.99410729,42592.0,42591.0,0.01]
[1644749131857,1.253,42590.0,42584.0,0.01369464]
[1644749132058,0.38302291,42589.0,42584.0,0.01369464]
[1644749132258,1.43192966,42588.0,42584.0,0.01369464]
[1644749132459,1.48192966,42588.0,42584.0,0.01369464]
[1644749132660,0.08583912,42585.0,42584.0,0.01369464]
[1644749132865,1.7744073,42585.0,42584.0,0.01369464]
[1644749133060,2.09445725,42585.0,42584.0,0.01369464]
[1644749133259,2.19445725,42585.0,42584.0,0.01369464]
[1644749133461,1.253,42583.0,42572.0,0.05]
[1644749133661,1.59900776,42582.0,42572.0,0.05]
[1644749133859,1.520522,42582.0,42572.0,0.05]
[1644749134915,1.520522,42582.0,42576.0,0.00023091]
[1644749135616,2.020522,42582.0,42576.0,0.00023091]
[1644749136016,0.767522,42582.0,42579.0,0.00048842]
[1644749136218,0.667522,42582.0,42580.0,0.00023091]
[1644749136615,0.167522,42582.0,42580.0,0.00023091]
[1644749136818,0.05,42582.0,42580.0,0.00023091]
[1644749137216,0.05,42582.0,42579.0,0.00048842]
[1644749137417,0.05,42582.0,42580.0,0.00023091]
[1644749139353,1.303,42582.0,42580.0,0.00023091]
[1644749139554,1.303,42582.0,42576.0,0.00023091]
[1644749139854,1.62706231,42582.0,42576.0,0.00023091]
[1644749140056,1.05,42581.0,42576.0,0.00023091]
[1644749140255,0.158766,42581.0,42573.0,0.30023091]
[1644749140455,0.1,42582.0,42574.0,0.00023091]
[1644749140456,0.23,42582.0,42574.0,0.00023091]
[1644749140854,0.23,42582.0,42576.0,0.00048549]
[1644749141054,0.23,42582.0,42576.0,0.0007164]
[1644749141254,0.109404,42583.0,42576.0,0.0007164]
[1644749141255,0.109404,42583.0,42582.0,0.30314443]
[1644749141854,0.009404,42583.0,42582.0,0.30314443]
[1644749145014,1.353,42584.0,42582.0,0.30314443]
[1644749145614,0.1,42584.0,42582.0,0.30314443]
[1644749145875,0.058741,42589.0,42582.0,0.30314443]
[1644749146070,0.5,42589.0,42583.0,0.3]
[1644749146266,0.5,42589.0,42583.0,0.00023091]
[1644749146466,0.5,42589.0,42582.0,0.30337534]
[1644749146765,0.5,42589.0,42583.0,0.19342643]
[1644749146969,0.7461281,42594.0,42583.0,0.19391158]
[1644749147167,0.24012961,42596.0,42583.0,0.19391158]
[1644749147168,0.058729,42597.0,42586.0,0.08659059]
[1644749147466,0.009402,42595.0,42586.0,0.08659059]
[1644749147670,0.00048495,42601.0,42586.0,0.08659059]
[1644749147867,0.5,42600.0,42587.0,0.3]
[1644749148066,0.5,42600.0,42592.0,0.23745457]
[1644749148266,0.75847846,42600.0,42592.0,0.23745457]
[1644749148472,0.75847846,42600.0,42589.0,0.00023091]
[1644749148666,0.75847846,42600.0,42588.0,0.00071604]
[1644749148667,0.25847846,42600.0,42588.0,0.00071604]
[1644749148867,0.117462,42599.0,42588.0,0.00071604]
[1644749149068,0.167462,42599.0,42584.0,0.29609848]
[1644749149267,0.167462,42599.0,42588.0,0.00048513]
[1644749149468,0.18923709,42598.0,42588.0,0.00048513]
[1644749149710,0.23923709,42598.0,42588.0,0.00048513]
[1644749150311,0.058729,42597.0,42588.0,0.27260814]
[1644749150510,0.058729,42597.0,42588.0,0.27309326]
[1644749150709,0.058729,42597.0,42588.0,0.00071603]
[1644749150910,0.117458,42597.0,42588.0,0.00071603]
[1644749151116,0.167458,42597.0,42588.0,0.00071603]
[1644749151313,0.05,42596.0,42588.0,0.00071603]
[1644749151513,0.05,42596.0,42586.0,0.00023091]
[1644749151713,0.05,42596.0,42588.0,0.00048512]
[1644749152514,0.28,42596.0,42588.0,0.00048512]
[1644749152715,0.28,42596.0,42586.0,0.00023091]
[1644749152912,0.28,42596.0,42588.0,0.00048512]
[1644749153759,0.275,42596.0,42588.0,0.00048512]
[1644749153956,0.275,42596.0,42587.0,0.00023091]
[1644749154155,0.275,42596.0,42588.0,0.00048512]
[1644749154757,0.05,42595.0,42588.0,0.00048512]
[1644749155157,0.05,42595.0,42587.0,0.00023091]
[1644749155357,0.05,42595.0,42588.0,0.00048512]
[1644749155757,0.05,42595.0,42586.0,0.25200772]
[1644749155959,0.05,42595.0,42588.0,0.00023278]
[1644749156160,0.425,42596.0,42586.0,0.2522405]
[1644749156362,0.375,42596.0,42586.0,0.2522405]
[1644749156560,0.425,42596.0,42586.0,0.2522405]
[1644749157227,0.483728,42596.0,42586.0,0.2522405]
[1644749158417,0.483728,42596.0,42586.0,0.00023278]
[1644749158617,0.483728,42596.0,42584.0,0.00023278]
[1644749158817,0.483728,42596.0,42583.0,0.38684177]
[1644749159417,0.25501472,42593.0,42583.0,0.38684177]
[1644749159624,0.32756245,42592.0,42583.0,0.00023278]
[1644749159823,0.04300671,42591.0,42583.0,0.00023278]
[1644749160022,0.22461095,42590.0,42583.0,0.00023278]
[1644749160319,0.32461095,42590.0,42585.0,0.00048513]
[1644749160520,0.19102479,42587.0,42585.0,0.00048513]
[1644749160720,0.1,42586.0,42585.0,0.00048513]
[1644749161160,0.15875,42587.0,42583.0,0.00023278]
[1644749161365,1.253,42585.0,42583.0,0.00048515]
[1644749161566,1.253,42584.0,42583.0,0.00071793]
[1644749161762,1.403,42584.0,42583.0,0.00048515]
[1644749162163,0.208753,42584.0,42583.0,0.00048515]
[1644749162363,0.208753,42584.0,42582.0,0.30337721]
[1644749162567,0.05,42583.0,42582.0,0.30314443]
[1644749163165,0.05,42583.0,42582.0,0.29314443]
[1644749167532,0.05,42586.0,42582.0,0.29314443]
[1644749167729,0.4317389,42587.0,42582.0,0.29314443]
[1644749168556,0.4317389,42587.0,42582.0,0.29360362]
[1644749169559,0.4317389,42587.0,42582.0,0.29314443]
[1644749169760,0.4317389,42587.0,42582.0,0.29360362]
[1644749170360,0.058745,42586.0,42582.0,0.29360362]
[1644749170761,0.058745,42586.0,42582.0,0.29314443]
[1644749170960,0.4317389,42587.0,42582.0,0.29360362]
[1644749172105,0.4317389,42587.0,42582.0,0.29314443]
[1644749172306,0.4317389,42587.0,42582.0,0.29358901]
[1644749173311,0.4317389,42587.0,42582.0,0.29314443]
[1644749173509,0.4317389,42587.0,42582.0,0.29358901]
[1644749174313,0.2,42587.0,42582.0,0.29358901]
[1644749174517,0.1,42587.0,42582.0,0.29314443]
[1644749174812,0.33,42587.0,42582.0,0.29358901]
[1644749175212,0.43,42587.0,42582.0,0.29358901]
[1644749175413,0.26437394,42586.0,42582.0,0.29358901]
[1644749175613,0.31437394,42586.0,42582.0,0.29314443]
[1644749175856,0.41437394,42586.0,42582.0,0.29359]
[1644749176458,0.15,42586.0,42582.0,0.29359]
[1644749176856,0.15,42586.0,42582.0,0.29314443]
[1644749177060,0.05,42586.0,42582.0,0.29359]
[1644749177257,0.43,42587.0,42582.0,0.29359]
[1644749177455,0.33,42587.0,42582.0,0.29359]
[1644749177756,0.43,42587.0,42584.0,0.0660012]
[1644749178357,0.43,42587.0,42584.0,0.06623398]
[1644749179157,0.43,42587.0,42584.0,0.00023278]
[1644749179357,0.43,42587.0,42583.0,0.00067828]
[1644749180407,0.43,42587.0,42583.0,0.00023278]
[1644749180610,0.43,42587.0,42583.0,0.0004455]
[1644749180814,0.00592654,42586.0,42583.0,0.00067828]
[1644749181009,0.43,42587.0,42583.0,0.00067828]
[1644749181209,0.15301148,42585.0,42583.0,0.00067828]
[1644749181409,0.15301148,42585.0,42583.0,0.0004455]
[1644749181611,0.25301148,42585.0,42582.0,0.29337721]
[1644749181809,0.25301148,42585.0,42582.0,0.29358994]
[1644749182010,0.1,42585.0,42582.0,0.29358994]
[1644749182214,0.05,42584.0,42582.0,0.29358994]
[1644749182611,0.439403,42587.0,42582.0,0.29358994]
[1644749182812,0.439403,42587.0,42582.0,0.29314443]
[1644749183010,0.439403,42587.0,42582.0,0.29358994]
[1644749183011,0.43,42587.0,42582.0,0.29358994]
[1644749183213,0.43,42587.0,42582.0,0.28858994]
[1644749184158,0.43,42587.0,42582.0,0.28814443]
[1644749184358,0.43,42587.0,42582.0,0.28858994]
[1644749185258,0.43,42587.0,42582.0,0.28814443]
[1644749185461,0.43,42587.0,42582.0,0.28858994]
[1644749186460,0.43,42587.0,42582.0,0.28814443]
[1644749186662,0.43,42587.0,42582.0,0.28858994]
[1644749187615,0.43,42587.0,42582.0,0.28814443]
[1644749187815,0.43,42587.0,42582.0,0.28858994]
[1644749188816,0.43,42587.0,42582.0,0.28814443]
[1644749189017,0.43,42587.0,42582.0,0.28858994]
[1644749190022,0.43,42587.0,42582.0,0.28814443]
[1644749190320,0.439403,42587.0,42582.0,0.28858994]
[1644749191256,0.439403,42587.0,42582.0,0.28814443]
[1644749191458,0.439403,42587.0,42582.0,0.28858994]
[1644749192455,0.5,42586.0,42582.0,0.28814443]
[1644749192660,0.5,42586.0,42582.0,0.28858994]
[1644749192860,0.05,42584.0,42582.0,0.00044551]
[1644749193060,0.11951016,42580.0,42576.0,0.00023278]
[1644749193258,1.29563863,42579.0,42575.0,0.0160809]
[1644749193457,0.24187089,42578.0,42575.0,0.0160809]
[1644749193757,0.21025713,42577.0,42575.0,0.01429858]
[1644749194158,0.5,42576.0,42575.0,0.01429858]
[1644749194359,0.65,42576.0,42575.0,0.01429858]
[1644749195213,0.97655642,42576.0,42575.0,0.01429858]
[1644749195606,1.13645847,42576.0,42575.0,0.01423762]
[1644749195906,2.38945847,42576.0,42575.0,0.01423762]
[1644749197005,2.29290205,42576.0,42575.0,0.01423762]
[1644749197707,2.41043105,42576.0,42575.0,0.01423762]
[1644749198116,2.41043105,42576.0,42573.0,0.00048428]
[1644749198117,2.353,42575.0,42573.0,0.00048428]
[1644749198384,1.70990205,42574.0,42573.0,0.00048428]
[1644749198671,0.058773,42573.0,42565.0,0.01490252]
[1644749198872,0.058763,42573.0,42565.0,0.01490252]
[1644749199772,0.058763,42573.0,42566.0,0.08002926]
[1644749199973,0.058763,42573.0,42567.0,0.3]
[1644749200175,0.05,42575.0,42569.0,0.05]
[1644749200577,0.05,42575.0,42566.0,0.08002926]
[1644749201372,0.05,42575.0,42568.0,0.22788818]
[1644749202409,0.05,42575.0,42571.0,0.0104488]
[1644749203318,0.05,42575.0,42571.0,0.01]
[1644749204712,0.05,42575.0,42571.0,0.01031959]
[1644749205713,0.05,42575.0,42571.0,0.01]
[1644749205977,0.05,42575.0,42571.0,0.01031959]
[1644749206870,0.05,42575.0,42571.0,0.01]
[1644749207071,0.05,42575.0,42571.0,0.01048114]
[1644749208071,0.05,42575.0,42571.0,0.01]
[1644749208273,0.05,42575.0,42571.0,0.01048114]
[1644749209271,0.05,42575.0,42571.0,0.27564179]
[1644749209472,0.05,42575.0,42571.0,0.27612293]
[1644749209918,0.05,42575.0,42571.0,0.01048114]
[1644749210511,0.05,42575.0,42571.0,0.01]
[1644749210710,0.05,42575.0,42571.0,0.01048114]
[1644749211708,0.05,42575.0,42571.0,0.01]
[1644749211908,0.05,42575.0,42571.0,0.01048114]
[1644749212709,0.05,42575.0,42574.0,0.07713266]
[1644749212911,0.05,42575.0,42571.0,0.01]
[1644749213110,0.05,42575.0,42571.0,0.01048114]
[1644749214465,0.05,42575.0,42573.0,0.07533312]
[1644749217312,0.05,42575.0,42573.0,0.07033312]
[1644749220212,0.23,42576.0,42573.0,0.07033312]
[1644749220414,0.23,42576.0,42573.0,0.07056541]
[1644749221476,0.23,42576.0,42573.0,0.07033312]
[1644749221972,0.23,42576.0,42573.0,0.07056541]
[1644749222774,0.23,42576.0,42573.0,0.07033312]
[1644749222973,0.05,42575.0,42573.0,0.05621094]
[1644749223175,0.05,42575.0,42573.0,0.05597865]
[1644749224080,0.05,42575.0,42572.0,0.00071342]
[1644749224910,0.05,42575.0,42572.0,0.00023229]
[1644749225112,0.05,42575.0,42571.0,0.01048114]
[1644749225309,0.05,42575.0,42571.0,0.08734649]